[Event "*** Titled Tuesday 3|2 Blitz"]
[Site "Chess.com"]
[Date "2016.10.04"]
[Round "9"]
[White "Shivagami"]
[Black "gmshanmeruga"]
[Result "1-0"]
[WhiteElo "2040"]
[BlackElo "2294"]
[TimeControl "180+2"]
[EndTime "19:07:45 PDT"]
[Termination "Shivagami won by checkmate"]

1. Nc3 {[%clk 0:03:02]} 1... d5 {[%clk 0:03:00.5]} 2. e4 {[%clk 0:03:02.5]} 2...
d4 {[%clk 0:02:50.2]} 3. Nce2 {[%clk 0:03:03.2]} 3... c5 {[%clk 0:02:50]} 4. Ng3
{[%clk 0:03:02.9]} 4... Nc6 {[%clk 0:02:50.6]} 5. Nf3 {[%clk 0:03:03.7]} 5...
Bg4 {[%clk 0:02:30.6]} 6. h3 {[%clk 0:02:49.5]} 6... Bxf3 {[%clk 0:02:28.8]} 7.
Qxf3 {[%clk 0:02:50.2]} 7... e5 {[%clk 0:02:30.2]} 8. Bc4 {[%clk 0:02:43.6]}
8... f6 {[%clk 0:02:30.8]} 9. Nf5 {[%clk 0:02:33.9]} 9... Nge7 {[%clk
0:02:28.9]} 10. Ng3 {[%clk 0:02:06.6]} 10... a6 {[%clk 0:02:24.8]} 11. a4 {[%clk
0:02:01.4]} 11... Qd7 {[%clk 0:02:19.1]} 12. c3 {[%clk 0:01:34.8]} 12... Rd8
{[%clk 0:02:00.9]} 13. Nh5 {[%clk 0:01:30.2]} 13... Ng6 {[%clk 0:01:53.9]} 14.
d3 {[%clk 0:01:22.3]} 14... Bd6 {[%clk 0:01:50.2]} 15. Bh6 {[%clk 0:01:20]}
15... Bf8 {[%clk 0:01:46]} 16. O-O {[%clk 0:00:52.3]} 16... Qe7 {[%clk
0:01:42.6]} 17. Qf5 {[%clk 0:00:40.2]} 17... Nh4 {[%clk 0:01:36.2]} 18. Qg4
{[%clk 0:00:37.1]} 18... g5 {[%clk 0:01:35]} 19. Nxf6+ {[%clk 0:00:28.4]} 19...
Qxf6 {[%clk 0:01:30.4]} 20. Bxg5 {[%clk 0:00:30]} 20... Qg6 {[%clk 0:01:24]} 21.
Qxh4 {[%clk 0:00:23.2]} 21... Be7 {[%clk 0:01:21.2]} 22. Bxe7 {[%clk 0:00:21.9]}
22... Nxe7 {[%clk 0:01:21.5]} 23. f4 {[%clk 0:00:20.8]} 23... Kd7 {[%clk
0:01:13]} 24. f5 {[%clk 0:00:19.5]} 24... Qe8 {[%clk 0:01:08.2]} 25. Be6+ {[%clk
0:00:19.1]} 25... Kc7 {[%clk 0:01:08.8]} 26. Qg3 {[%clk 0:00:17.1]} 26... Nc6
{[%clk 0:01:09]} 27. Bd5 {[%clk 0:00:18.1]} 27... h5 {[%clk 0:01:01.3]} 28. f6
{[%clk 0:00:19.2]} 28... h4 {[%clk 0:01:01.2]} 29. Qg5 {[%clk 0:00:20.1]} 29...
Rh5 {[%clk 0:00:58.6]} 30. Qg4 {[%clk 0:00:20.2]} 30... Rh7 {[%clk 0:00:50.8]}
31. f7 {[%clk 0:00:20.9]} 31... Qe7 {[%clk 0:00:48.9]} 32. Qf5 {[%clk
0:00:21.4]} 32... Rhh8 {[%clk 0:00:46]} 33. Qe6 {[%clk 0:00:20.6]} 33... Qxe6
{[%clk 0:00:43.9]} 34. Bxe6 {[%clk 0:00:22.5]} 34... Kd6 {[%clk 0:00:43.9]} 35.
Bd5 {[%clk 0:00:23.1]} 35... Ke7 {[%clk 0:00:42.8]} 36. Rf5 {[%clk 0:00:23.7]}
36... Rdf8 {[%clk 0:00:38.3]} 37. Raf1 {[%clk 0:00:24.7]} 37... Rh7 {[%clk
0:00:34.7]} 38. Bxc6 {[%clk 0:00:21.6]} 38... bxc6 {[%clk 0:00:35.8]} 39. Rxe5+
{[%clk 0:00:22.9]} 39... Kd6 {[%clk 0:00:33.1]} 40. Ref5 {[%clk 0:00:24.1]}
40... Ke7 {[%clk 0:00:29.4]} 41. Rxc5 {[%clk 0:00:24]} 41... Rhxf7 {[%clk
0:00:29.2]} 42. Rxf7+ {[%clk 0:00:23.9]} 42... Kxf7 {[%clk 0:00:28.5]} 43. Rxc6
{[%clk 0:00:25.2]} 43... Rb8 {[%clk 0:00:29.2]} 44. cxd4 {[%clk 0:00:22.8]}
44... Rxb2 {[%clk 0:00:28.9]} 45. Rxa6 {[%clk 0:00:24.3]} 45... Rd2 {[%clk
0:00:30.2]} 46. Rd6 {[%clk 0:00:23.9]} 46... Rxd3 {[%clk 0:00:31.3]} 47. e5
{[%clk 0:00:25]} 47... Ke7 {[%clk 0:00:32.3]} 48. Kf2 {[%clk 0:00:25.5]} 48...
Ra3 {[%clk 0:00:33.1]} 49. Ra6 {[%clk 0:00:25]} 49... Rd3 {[%clk 0:00:29.1]} 50.
Rd6 {[%clk 0:00:25.4]} 50... Ra3 {[%clk 0:00:30.2]} 51. a5 {[%clk 0:00:26.7]}
51... Rxa5 {[%clk 0:00:30.7]} 52. Kf3 {[%clk 0:00:28.1]} 52... Ra3+ {[%clk
0:00:29.5]} 53. Kg4 {[%clk 0:00:28.7]} 53... Rg3+ {[%clk 0:00:31.4]} 54. Kxh4
{[%clk 0:00:30]} 54... Rxg2 {[%clk 0:00:33.3]} 55. Kh5 {[%clk 0:00:30.4]} 55...
Rg8 {[%clk 0:00:31.3]} 56. d5 {[%clk 0:00:31.1]} 56... Rg3 {[%clk 0:00:30.4]}
57. h4 {[%clk 0:00:31.9]} 57... Re3 {[%clk 0:00:31.1]} 58. Re6+ {[%clk
0:00:32.1]} 58... Kf7 {[%clk 0:00:31.9]} 59. Rf6+ {[%clk 0:00:32.6]} 59... Kg7
{[%clk 0:00:31.5]} 60. Kg5 {[%clk 0:00:33.6]} 60... Rxe5+ {[%clk 0:00:32.2]} 61.
Rf5 {[%clk 0:00:33.8]} 61... Re1 {[%clk 0:00:31]} 62. h5 {[%clk 0:00:31.8]}
62... Rg1+ {[%clk 0:00:31.8]} 63. Kf4 {[%clk 0:00:32.9]} 63... Rf1+ {[%clk
0:00:32.4]} 64. Ke5 {[%clk 0:00:33.9]} 64... Re1+ {[%clk 0:00:31.4]} 65. Kd6
{[%clk 0:00:34.9]} 65... Re2 {[%clk 0:00:30.8]} 66. Kd7 {[%clk 0:00:35.8]} 66...
Ra2 {[%clk 0:00:25.6]} 67. d6 {[%clk 0:00:36.6]} 67... Ra7+ {[%clk 0:00:26.8]}
68. Kc8 {[%clk 0:00:35.9]} 68... Ra8+ {[%clk 0:00:27.5]} 69. Kb7 {[%clk
0:00:36.2]} 69... Ra1 {[%clk 0:00:28.6]} 70. d7 {[%clk 0:00:35.8]} 70... Rb1+
{[%clk 0:00:29.9]} 71. Kc6 {[%clk 0:00:36.2]} 71... Rc1+ {[%clk 0:00:31]} 72.
Rc5 {[%clk 0:00:36]} 72... Rd1 {[%clk 0:00:32.1]} 73. Kc7 {[%clk 0:00:36.7]}
73... Kh6 {[%clk 0:00:20]} 74. d8=Q {[%clk 0:00:36.9]} 74... Rd7+ {[%clk
0:00:20.1]} 75. Kxd7 {[%clk 0:00:34.5]} 75... Kg7 {[%clk 0:00:21.1]} 76. Qe7+
{[%clk 0:00:35.3]} 76... Kh8 {[%clk 0:00:03.6]} 77. Rc8# {[%clk 0:00:35.1]} 1-0

[Event "*** Titled Tuesday 3|2 Blitz"]
[Site "Chess.com"]
[Date "2016.10.04"]
[Round "9"]
[White "Tarlev_Konstantin"]
[Black "dretch"]
[Result "1/2-1/2"]
[WhiteElo "2597"]
[BlackElo "2662"]
[TimeControl "180+2"]
[EndTime "19:08:11 PDT"]
[Termination "Game drawn by agreement"]

1. c4 {[%clk 0:03:02]} 1... c6 {[%clk 0:03:00.1]} 2. d4 {[%clk 0:03:01]} 2... d5
{[%clk 0:03:01.2]} 3. Nf3 {[%clk 0:03:02.8]} 3... Nf6 {[%clk 0:03:02.6]} 4. e3
{[%clk 0:03:04.1]} 4... Bg4 {[%clk 0:03:03.1]} 5. h3 {[%clk 0:03:02.1]} 5...
Bxf3 {[%clk 0:03:03]} 6. Qxf3 {[%clk 0:03:02.8]} 6... Nbd7 {[%clk 0:03:03.7]} 7.
Nc3 {[%clk 0:03:02.7]} 7... e6 {[%clk 0:03:04.7]} 8. Bd3 {[%clk 0:02:58.9]} 8...
Bb4 {[%clk 0:03:03.7]} 9. O-O {[%clk 0:02:59.7]} 9... O-O {[%clk 0:03:04]} 10.
Rd1 {[%clk 0:02:58.8]} 10... Qe7 {[%clk 0:03:01.2]} 11. cxd5 {[%clk 0:02:49.7]}
11... exd5 {[%clk 0:03:00.8]} 12. Bd2 {[%clk 0:02:51.1]} 12... Rfe8 {[%clk
0:03:01.1]} 13. a3 {[%clk 0:02:51]} 13... Bxc3 {[%clk 0:03:01.1]} 14. Bxc3
{[%clk 0:02:52.1]} 14... Ne4 {[%clk 0:03:02.6]} 15. Bb4 {[%clk 0:02:53]} 15...
Qh4 {[%clk 0:03:02.6]} 16. Be1 {[%clk 0:02:50.8]} 16... Ndf6 {[%clk 0:03:00.4]}
17. Bf1 {[%clk 0:02:49.7]} 17... Ng5 {[%clk 0:02:54.6]} 18. Qf5 {[%clk
0:02:38.9]} 18... Qh6 {[%clk 0:02:06.1]} 19. Qc2 {[%clk 0:02:26.7]} 19... Nge4
{[%clk 0:01:58.9]} 20. b4 {[%clk 0:02:11.5]} 20... Rac8 {[%clk 0:01:37.4]} 21.
a4 {[%clk 0:02:10.2]} 21... b6 {[%clk 0:01:34.6]} 22. Rac1 {[%clk 0:02:07.6]}
22... Qg5 {[%clk 0:01:26]} 23. b5 {[%clk 0:01:55.6]} 23... c5 {[%clk 0:01:26.6]}
24. dxc5 {[%clk 0:01:56.2]} 24... bxc5 {[%clk 0:01:26.2]} 25. a5 {[%clk
0:01:57]} 25... Rb8 {[%clk 0:01:16.2]} 26. f3 {[%clk 0:01:44.2]} 26... Qxe3+
{[%clk 0:01:16.6]} 27. Kh1 {[%clk 0:01:45.5]} 27... Nd6 {[%clk 0:00:40.6]} 28.
Qxc5 {[%clk 0:01:27.1]} 28... Qf4 {[%clk 0:00:37.4]} 29. Qxa7 {[%clk 0:01:09.3]}
29... Nxb5 {[%clk 0:00:20.2]} 30. Bxb5 {[%clk 0:01:09.1]} 30... Rxb5 {[%clk
0:00:22.1]} 31. Qf2 {[%clk 0:01:04.8]} 31... Qd6 {[%clk 0:00:19.7]} 32. Ra1
{[%clk 0:00:59.7]} 32... Ra8 {[%clk 0:00:16.6]} 33. Qe2 {[%clk 0:00:58.7]} 33...
Qa6 {[%clk 0:00:17.6]} 34. Qd3 {[%clk 0:00:49.2]} 34... h6 {[%clk 0:00:17.3]}
35. Rab1 {[%clk 0:00:40.3]} 35... Rab8 {[%clk 0:00:13.5]} 36. Rxb5 {[%clk
0:00:40.9]} 36... Rxb5 {[%clk 0:00:14.5]} 37. Qc2 {[%clk 0:00:25.6]} 37... Qb7
{[%clk 0:00:09.9]} 38. Rc1 {[%clk 0:00:25.9]} 38... d4 {[%clk 0:00:09.7]} 39.
Qc8+ {[%clk 0:00:26.2]} 39... Qxc8 {[%clk 0:00:09.1]} 40. Rxc8+ {[%clk
0:00:27.7]} 40... Kh7 {[%clk 0:00:11]} 41. Kh2 {[%clk 0:00:28]} 41... Rb1 {[%clk
0:00:11.1]} 42. Bf2 {[%clk 0:00:19.5]} 42... Ra1 {[%clk 0:00:07.9]} 43. Rc5
{[%clk 0:00:18.5]} 43... d3 {[%clk 0:00:07.9]} 44. Be3 {[%clk 0:00:20.1]} 44...
Re1 {[%clk 0:00:05.5]} 45. Bc1 {[%clk 0:00:14.5]} 45... Nd7 {[%clk 0:00:04.6]}
46. Rc3 {[%clk 0:00:14]} 46... Nb8 {[%clk 0:00:03.4]} 47. Bd2 {[%clk 0:00:13.9]}
47... Ra1 {[%clk 0:00:04.2]} 48. Rxd3 {[%clk 0:00:15.2]} 48... Nc6 {[%clk
0:00:04.5]} 49. Rd5 {[%clk 0:00:15.5]} 49... Ra2 {[%clk 0:00:05.1]} 50. Rc5
{[%clk 0:00:16.2]} 50... Rxd2 {[%clk 0:00:04.9]} 51. Rxc6 {[%clk 0:00:17.3]}
51... Ra2 {[%clk 0:00:06.7]} 52. a6 {[%clk 0:00:18.6]} 52... g5 {[%clk
0:00:08.4]} 53. Kg3 {[%clk 0:00:19.5]} 53... Kg7 {[%clk 0:00:08.5]} 54. Rb6
{[%clk 0:00:20.3]} 54... Ra3 {[%clk 0:00:08]} 55. Kg4 {[%clk 0:00:21.3]} 55...
Ra4+ {[%clk 0:00:09.2]} 56. Kg3 {[%clk 0:00:22.8]} 56... Ra2 {[%clk 0:00:09.9]}
57. Rd6 {[%clk 0:00:24.2]} 57... h5 {[%clk 0:00:10.3]} 58. h4 {[%clk 0:00:24.3]}
58... f6 {[%clk 0:00:11.2]} 59. hxg5 {[%clk 0:00:25.2]} 59... fxg5 {[%clk
0:00:13.1]} 60. Rb6 {[%clk 0:00:26.4]} 60... Kf7 {[%clk 0:00:13.9]} 61. Kh3
{[%clk 0:00:27.9]} 61... Kg7 {[%clk 0:00:14.9]} 62. Rb7+ {[%clk 0:00:19.5]}
62... Kf6 {[%clk 0:00:14.7]} 63. a7 {[%clk 0:00:20.7]} 63... Kf5 {[%clk
0:00:12.1]} 64. Kh2 {[%clk 0:00:21.2]} 64... h4 {[%clk 0:00:12.3]} 65. Rh7
{[%clk 0:00:21.7]} 65... Kg6 {[%clk 0:00:13.1]} 66. Rb7 {[%clk 0:00:22.8]} 66...
Kf6 {[%clk 0:00:13.8]} 67. Kg1 {[%clk 0:00:24]} 67... Kg6 {[%clk 0:00:14.3]} 68.
Kf1 {[%clk 0:00:24.7]} 68... Kf5 {[%clk 0:00:15.8]} 69. Ke1 {[%clk 0:00:18]}
69... Kf4 {[%clk 0:00:16.2]} 70. Rg7 {[%clk 0:00:17.6]} 70... Ke3 {[%clk
0:00:17]} 71. Kd1 {[%clk 0:00:18.1]} 71... Kf2 {[%clk 0:00:17.2]} 72. Rxg5
{[%clk 0:00:15.8]} 72... Rxa7 {[%clk 0:00:17.1]} 73. f4 {[%clk 0:00:17.2]} 73...
Rf7 {[%clk 0:00:12]} 74. f5 {[%clk 0:00:17.8]} 74... Ke3 {[%clk 0:00:13.7]} 75.
Rh5 {[%clk 0:00:11.1]} 75... Kf4 {[%clk 0:00:14]} 76. Rxh4+ {[%clk 0:00:12.3]}
76... Kxf5 {[%clk 0:00:15.4]} 77. Ke2 {[%clk 0:00:13.9]} 77... Kg5 {[%clk
0:00:16.1]} 78. Re4 {[%clk 0:00:15.5]} 78... Rf8 {[%clk 0:00:15.4]} 79. Re3
{[%clk 0:00:15.1]} 79... Rf7 {[%clk 0:00:16]} 80. Rg3+ {[%clk 0:00:14.7]} 80...
Kh6 {[%clk 0:00:17.3]} 81. Rf3 {[%clk 0:00:16.1]} 81... Re7+ {[%clk 0:00:18.8]}
82. Kf2 {[%clk 0:00:17.5]} 82... Rb7 {[%clk 0:00:20.4]} 83. Kg3 {[%clk
0:00:19.1]} 83... Kg6 {[%clk 0:00:21.9]} 84. Kh4 {[%clk 0:00:20.6]} 84... Rb4+
{[%clk 0:00:22.8]} 85. g4 {[%clk 0:00:22.1]} 85... Rb1 {[%clk 0:00:24.4]} 86.
Ra3 {[%clk 0:00:22.9]} 86... Rh1+ {[%clk 0:00:25.2]} 87. Kg3 {[%clk 0:00:24.5]}
87... Rg1+ {[%clk 0:00:26.8]} 88. Kh3 {[%clk 0:00:26]} 88... Rh1+ {[%clk
0:00:28.1]} 89. Kg2 {[%clk 0:00:27.5]} 89... Rb1 {[%clk 0:00:29.1]} 1/2-1/2